Cogmind - Beta 13 @@@ ROGUE MODE // 2024.04.03 @ 23:51:05 Player: _An Result: Destroyed by B-99 Colossus with Multirail Performance ------------- Evolutions (9) 4500 Regions Visited (19) 3800 Robots Destroyed (30) 150 Value Destroyed (849) 849 Prototype IDs (15) 300 Alien Tech Used (2) 400 Bonus (800) 800 TOTAL SCORE: 10799 Bonus ------- Entered DSFs 500 Met Zhirov 300 Cogmind --------- Core Integrity 0/1600 Matter 173/300 Energy 91/100 System Corruption 6% Temperature Cool (2) Movement Hovering (60) Location -1/Access Parts ------- > --- POWER (1) -------- (None) > --- PROPULSION (7) --- Combat Linear Gravjet Xenon Bombardment Thruster Cooled Q-thruster > --- UTILITY (15) ----- Improved Armor Integrity Analyzer > --- WEAPON (2) ------- (None) > --- INVENTORY (5) ---- Particle Reactor Advanced Medium Treads Experimental Power Shielding Antimissile System HERF Cannon Peak State ------------ > --- POWER ------------ Light Nuclear Core > --- PROPULSION ------- VTOL Module Impulse Thruster Impulse Thruster Impulse Thruster Array > --- UTILITY ---------- Advanced Signal Interpreter Improved Melee Analysis Suite Improved Melee Analysis Suite Improved Melee Analysis Suite Advanced Melee Analysis Suite Improved Armor Integrity Analyzer Advanced Reaction Control System Experimental Power Shielding Hacking Suite Advanced Hacking Suite System Shield > --- WEAPON ----------- Phasing Sabre > --- INVENTORY -------- Neutrino Core Makeshift Leg Advanced Weight Redist. System [Rating: 96] Favorites ----------- Power Light Ion Engine Engine Light Ion Engine Power Core Micro Nuclear Core Reactor Light Antimatter Reactor Propulsion Flight Unit Treads Advanced Medium Treads Leg Makeshift Leg Wheel Wheel Hover Unit Combat Linear Gravjet Flight Unit Flight Unit Utility Improved Melee Analysis Suite Device Seismic Detector Storage Small Storage Unit Processor Improved Melee Analysis Suite Hackware System Shield Protection Improved Light Armor Plating Weapon Heavy Battle Rifle Energy Gun Small Laser Energy Cannon HERF Cannon Ballistic Gun Heavy Battle Rifle Ballistic Cannon Linear Accelerator Launcher Rocket Launcher Slashing Weapon Chainsword Build | -11 -10 -10 -9 -9 -8 -7 -6 -6 -6 -5 -5 -4 -4 -4 -4 -3 -3 -2 -1 ------- Run | Yrd Mat Min Mat Min Mat Fac Fac Ext Cet Fac DSF Fac Upp Upp Zhi Pro Res Res Acc Slots Evolved 18 | . . . 2 . 2 2 2 . . 2 . 2 . . . . 2 2 2 Power . | . . . . . . . . . . . . . . . . . . . . Propulsion 5 | . . . 2 . . 1 1 . . . . . . . . . 1 . . Utility 13 | . . . . . 2 1 1 . . 2 . 2 . . . . 1 2 2 Weapon . | . . . . . . . . . . . . . . . . . . . . Parts Attached 108 | 7 2 7 1 8 3 13 4 1 1 . 7 8 1 2 3 1 10 11 18 Power 12 | 1 . 1 . 2 . 2 . . . . 1 1 . . . . 1 1 2 Engine 5 | 1 . 1 . 2 . 1 . . . . . . . . . . . . . Core 5 | . . . . . . 1 . . . . 1 1 . . . . 1 1 . Reactor 2 | . . . . . . . . . . . . . . . . . . . 2 Propulsion 39 | 2 . 3 1 4 2 4 2 . . . 4 1 . . . . 3 4 9 Treads 1 | . . . . . . . . . . . . . . . . . . . 1 Leg 1 | . . . . . . . . . . . . . . . . . . 1 . Wheel 2 | 2 . . . . . . . . . . . . . . . . . . . Hover 3 | . . . . . . . . . . . . . . . . . . . 3 Flight 32 | . . 3 1 4 2 4 2 . . . 4 1 . . . . 3 3 5 Utility 37 | 1 1 1 . 1 . 5 2 1 1 . 2 3 1 2 3 1 5 5 2 Device 16 | . 1 1 . 1 . 1 1 1 . . . . 1 2 1 . . 5 1 Storage 1 | 1 . . . . . . . . . . . . . . . . . . . Processor 10 | . . . . . . 2 1 . . . 1 3 . . . . 3 . . Hackware 5 | . . . . . . 1 . . . . . . . . 1 1 1 . 1 Protection 5 | . . . . . . 1 . . 1 . 1 . . . 1 . 1 . . Artifact . | . . . . . . . . . . . . . . . . . . . . Weapon 20 | 3 1 2 . 1 1 2 . . . . . 3 . . . . 1 1 5 Energy Gun 5 | 1 . . . . . . . . . . . 2 . . . . . . 2 Energy Cannon 2 | . . . . . . . . . . . . . . . . . . . 2 Ballistic Gun 7 | 2 1 2 . 1 . . . . . . . 1 . . . . . . . Ballistic Cannon 1 | . . . . . . . . . . . . . . . . . . 1 . Launcher 2 | . . . . . 1 . . . . . . . . . . . . . 1 Special Weapon . | . . . . . . . . . . . . . . . . . . . . Impact Weapon . | . . . . . . . . . . . . . . . . . . . . Slashing Weapon 3 | . . . . . . 2 . . . . . . . . . . 1 . . Piercing Weapon . | . . . . . . . . . . . . . . . . . . . . Special Melee Weapon . | . . . . . . . . . . . . . . . . . . . . Unidentified Prototypes 6 | . . . . . . 1 . . . . . . . . 4 . . . 1 Parts Lost 65 | . . 4 . 5 3 1 . 9 1 . 9 2 . . . . . 10 21 Power 5 | . . 1 . 1 . . . . . . 1 . . . . . . . 2 Propulsion 30 | . . 2 . 3 2 1 . 5 1 . 4 . . . . . . 3 9 Utility 21 | . . . . 1 . . . 2 . . 4 . . . . . . 6 8 Weapon 9 | . . 1 . . 1 . . 2 . . . 2 . . . . . 1 2 Highest Loss Streak 7 | . . 2 . 3 3 1 . 6 1 . 7 1 . . . . . 7 6 To Critical Strikes . | . . . . . . . . . . . . . . . . . . . . Average Slot Usage (%) 64 | . 91 58 66 85 69 93 94 86 40 35 35 20 26 27 32 39 58 53 35 Engine 4 | . 14 10 11 10 9 6 . . . . . . . . . . . . . Core 1 | . . . . . . . 6 5 . . . . . . . . 1 4 1 Wheel 1 | . 28 3 . . . . . . . . . . . . . . . . . Flight 21 | . . 18 33 42 34 38 35 31 3 . 2 . 5 5 5 5 12 11 7 Device 6 | . 5 12 11 10 9 7 6 5 6 5 5 . 5 6 8 5 4 4 4 Processor 10 | . . . . . . 11 19 20 20 17 18 18 15 15 15 15 21 15 10 Hackware 3 | . . . . . . 4 6 6 6 5 3 . . . 1 7 10 13 5 Protection 1 | . . . . . . 6 6 4 3 5 3 . . . 2 5 4 . . Ballistic Gun 7 | . 22 12 11 20 15 . . . . . . . . . . . . . . Launcher 1 | . . . . . 1 7 6 4 . . . . . . . . . . . Slashing Weapon 1 | . . . . . . 6 6 5 . . . . . . . . 1 1 . Naked Turns 29 | . . 29 . . . . . . . . . . . . . . . . . Heaviest Build 29 | 13 14 14 8 9 9 17 17 17 5 5 20 6 3 4 7 4 27 27 29 Greatest Support 40 | 26 26 26 12 16 16 24 30 30 5 3 28 4 4 4 4 4 34 34 40 Greatest Overweight (x) 6 | . . . . 1 . . . 1 1 1 6 1 . . 1 . . . 1 Average Overweight (x) . | . . . . . . . . . . 1 1 . . . . . . . . Largest Inventory Capacity 8 | 8 8 8 5 5 5 5 5 5 5 5 5 5 5 5 5 5 5 5 5 Average Capacity 5 | 6 8 5 5 5 5 5 5 5 5 5 5 5 5 5 5 5 5 5 5 Most Carried 5 | 2 3 4 3 5 5 5 5 5 5 4 4 4 4 5 5 5 5 4 5 Average Carried 4 | 1 2 3 3 4 4 4 4 4 4 4 3 3 4 4 5 5 4 3 2 Final Capacity 8 | 8 8 5 5 5 5 5 5 5 5 5 5 5 5 5 5 5 5 5 5 Final Carried 5 | 2 3 4 3 5 4 5 5 5 4 4 3 4 4 5 5 5 4 1 5 Class Distribution -------------------- 35% | Mutant 33% | Scavenger-Sprinter 17% | Hacker-Mutant 7% | Sprinter 3% | Scavenger-Mutant Dominant Class ---------------- Mutant | -10/Materials Mutant | -10/Mines Scavenger-Mutant | -9/Materials Scavenger-Sprinter | -9/Mines Scavenger-Sprinter | -8/Materials Scavenger-Sprinter | -7/Factory Sprinter | -6/Factory Sprinter | -6/Extension Mutant | -6/Cetus Mutant | -5/Factory Mutant | -5/DSF Mutant | -4/Factory Mutant | -4/Upper Caves Mutant | -4/Upper Caves Mutant | -4/Zhirov Hacker-Mutant | -3/Proximity Caves Hacker-Mutant | -3/Research Hacker-Mutant | -2/Research Hacker-Mutant | -1/Access Resources | -11 -10 -10 -9 -9 -8 -7 -6 -6 -6 -5 -5 -4 -4 -4 -4 -3 -3 -2 -1 ----------- Run | Yrd Mat Min Mat Min Mat Fac Fac Ext Cet Fac DSF Fac Upp Upp Zhi Pro Res Res Acc Matter Collected 1307 | 288 58 94 10 129 44 120 . 75 . . 50 54 29 66 . 43 144 24 79 Remotely . | . . . . . . . . . . . . . . . . . . . . Salvage Created 898 | 46 157 . . 117 44 50 . 98 . . . 78 . . . . 144 130 34 Parts 71 | 5 8 . . 18 3 8 . 4 . . . 4 . . . . 5 13 3 Haulers Intercepted . | . . . . . . . . . . . . . . . . . . . . Recyclers Shooed 2 | 1 . . . . . . . . . . . . . . . . 1 . . Parts Field Recycled . | . . . . . . . . . . . . . . . . . . . . Retrieved Matter . | . . . . . . . . . . . . . . . . . . . . Parts Self-Destructed . | . . . . . . . . . . . . . . . . . . . . Prevented . | . . . . . . . . . . . . . . . . . . . . Kills | -11 -10 -10 -9 -9 -8 -7 -6 -6 -6 -5 -5 -4 -4 -4 -4 -3 -3 -2 -1 ------- Run | Yrd Mat Min Mat Min Mat Fac Fac Ext Cet Fac DSF Fac Upp Upp Zhi Pro Res Res Acc Combat Hostiles Destroyed 23 | . 4 . . 7 3 . . 1 . . . 3 . . . . 2 2 1 Melee 5 | . . . . . . . . 1 . . . . . . . . 2 2 . Guns 17 | . 4 . . 7 3 . . . . . . 3 . . . . . . . Cannons 1 | . . . . . . . . . . . . . . . . . . . 1 Classes Destroyed 7 | 1 1 . . 1 . 1 . 2 . . . . . . . . . 1 . Tunneler 4 | 2 . . . 1 . 1 . . . . . . . . . . . . . Operator 2 | . . . . . . 2 . . . . . . . . . . . . . Watcher 1 | . . . . . . . . 1 . . . . . . . . . . . Swarmer 14 | . . . . 7 3 . . . . . . 3 . . . . . . 1 Grunt 5 | . 4 . . . . . . . . . . . . . . . 1 . . Sentry 2 | . . . . . . . . 1 . . . . . . . . 1 . . Programmer 2 | . . . . . . . . . . . . . . . . . . 2 . Best Kill Streak 5 | 1 2 . . 5 3 1 . 1 . . . 3 . . . . 1 2 1 Combat Bots Only 4 | . 2 . . 4 3 . . 1 . . . 3 . . . . 1 2 1 Max Kills in Single Turn 1 | 1 1 . . 1 1 1 . 1 . . . 1 . . . . 1 1 1 Gunslinging . | . . . . . . . . . . . . . . . . . . . . Exploded . | . . . . . . . . . . . . . . . . . . . . Melee 1 | . . . . . . . . 1 . . . . . . . . 1 1 . Uniques/NPCs Destroyed . | . . . . . . . . . . . . . . . . . . . . Combat | -11 -10 -10 -9 -9 -8 -7 -6 -6 -6 -5 -5 -4 -4 -4 -4 -3 -3 -2 -1 -------- Run | Yrd Mat Min Mat Min Mat Fac Fac Ext Cet Fac DSF Fac Upp Upp Zhi Pro Res Res Acc Hostile Shots Fired 991 | . 15 23 . 57 29 21 . 169 7 . 174 115 . . . 14 39 67 261 Missed 471 | . 5 7 . 19 14 13 . 102 1 . 77 46 . . . 10 21 43 113 Damage Taken 9022 | . 115 429 . 294 130 78 . 681 152 . 1648 1198 . . . 63 394 638 3202 Core 4094 | . 11 207 . 83 18 6 . 156 47 . 681 910 . . . 46 107 220 1602 Absorbed by Shields 97 | . . . . . . . . . . . 33 64 . . . . . . . Redirected to Shielding 67 | . . . . . . . . . . . . . . . . . 67 . . Ignored by Resistances 111 | . . . . . . . . . . . . . . . . . . . 111 Core Remaining (%) 68 | 100 . 12 . 79 96 99 . . 76 . 31 . . . . 14 91 84 . Volleys Fired 98 | 6 18 2 . 24 16 . . . . . . 19 . . . . . . 13 Largest 2 | 2 2 2 . 1 2 . . . . . . 1 . . . . . . 1 Hottest 88 | 60 60 40 . 33 53 . . . . . . 88 . . . . . . 88 Shots Fired 134 | 12 35 4 . 24 27 . . . . . . 19 . . . . . . 13 Gun 127 | 12 35 4 . 24 27 . . . . . . 19 . . . . . . 6 Cannon 4 | . . . . . . . . . . . . . . . . . . . 4 Launcher 3 | . . . . . . . . . . . . . . . . . . . 3 Special . | . . . . . . . . . . . . . . . . . . . . Kinetic 103 | 6 28 4 . 24 27 . . . . . . 14 . . . . . . . Thermal 24 | 6 7 . . . . . . . . . . 5 . . . . . . 6 Explosive 3 | . . . . . . . . . . . . . . . . . . . 3 Electromagnetic 4 | . . . . . . . . . . . . . . . . . . . 4 Robot Hit Streak 9 | 2 8 3 . 2 8 . . . . . . 9 . . . . . . 2 Robot Miss Streak 8 | 3 2 1 . 2 8 . . . . . . 3 . . . . . . 3 Penetration Max . | . . . . . . . . . . . . . . . . . . . . Secondary Targets 1 | . 1 . . . . . . . . . . . . . . . . . . Max Gunslinging Chain 1 | . 1 . . . . . . . . . . . . . . . . . . Shots Hit Robots 101 | 5 20 3 . 12 11 5 . 7 . . . 12 . . . . 14 7 5 Core Hits 49 | 2 11 . . 8 6 2 . 3 . . . 7 . . . . 4 3 3 Critical Kills 1 | 1 . . . . . . . . . . . . . . . . . . . Critical Parts Destroyed . | . . . . . . . . . . . . . . . . . . . . Critical Strikes 6 | 1 . . . . . . . 1 . . . . . . . . 2 2 . Destroy 1 | 1 . . . . . . . . . . . . . . . . . . . Sever 5 | . . . . . . . . 1 . . . . . . . . 2 2 . Melee Attacks 68 | . . . . . . 17 10 10 . . . . . . . . 23 8 . Impact . | . . . . . . . . . . . . . . . . . . . . Slashing 68 | . . . . . . 17 10 10 . . . . . . . . 23 8 . Piercing . | . . . . . . . . . . . . . . . . . . . . Sneak Attacks 2 | . . . . . . 1 . . . . . . . . . . 1 . . Combat Hostiles . | . . . . . . . . . . . . . . . . . . . . Follow-up Attacks . | . . . . . . . . . . . . . . . . . . . . Damage Inflicted 2993 | 61 208 29 . 285 128 290 . 292 . . . 212 . . . . 810 338 340 Guns 973 | 61 208 29 . 285 128 . . . . . . 212 . . . . . . 50 Cannons 33 | . . . . . . . . . . . . . . . . . . . 33 Explosions 252 | . . . . . . . . . . . . . . . . . . . 252 Melee 1730 | . . . . . . 290 . 292 . . . . . . . . 810 338 . Ramming 5 | . . . . . . . . . . . . . . . . . . . 5 Kinetic 776 | 28 175 29 . 285 128 . . . . . . 131 . . . . . . . Thermal 197 | 33 33 . . . . . . . . . . 81 . . . . . . 50 Explosive 252 | . . . . . . . . . . . . . . . . . . . 252 Electromagnetic 33 | . . . . . . . . . . . . . . . . . . . 33 Impact . | . . . . . . . . . . . . . . . . . . . . Slashing 1730 | . . . . . . 290 . 292 . . . . . . . . 810 338 . Piercing . | . . . . . . . . . . . . . . . . . . . . Highest Corruption 10 | . . . . . . . . . . . 3 10 10 10 10 5 1 5 6 Average Corruption 5 | . . . . . . . . . . . 2 10 10 10 7 5 1 3 2 Corruption Purged 5 | . . . . . . . . . . . . . . . 5 . . . . Corruption Blocked . | . . . . . . . . . . . . . . . . . . . . Effects 23 | . . . . . . . . . . . . 8 3 2 2 5 1 1 1 Message Errors 3 | . . . . . . . . . . . . . 1 . 1 1 . . . Matter Fused 6 | . . . . . . . . . . . . 2 . 1 1 2 . . . Heat Flow Errors 2 | . . . . . . . . . . . . . 1 . . 1 . . . Energy Discharges 4 | . . . . . . . . . . . . 2 1 . . . . . 1 Parts Rejected 1 | . . . . . . . . . . . . . . . . . . 1 . Parts Fused 1 | . . . . . . . . . . . . . . . . 1 . . . Data Loss (minor) 3 | . . . . . . . . . . . . 1 . 1 . . 1 . . Data Loss (major) 1 | . . . . . . . . . . . . 1 . . . . . . . Misdirections 2 | . . . . . . . . . . . . 2 . . . . . . . Overload Shots . | . . . . . . . . . . . . . . . . . . . . Overflow Damage 186 | . . . . . . 67 . . . . . . . . . . 119 . . Projectiles . | . . . . . . . . . . . . . . . . . . . . Explosions . | . . . . . . . . . . . . . . . . . . . . Melee 186 | . . . . . . 67 . . . . . . . . . . 119 . . Knockbacks . | . . . . . . . . . . . . . . . . . . . . Impact . | . . . . . . . . . . . . . . . . . . . . Kinetic . | . . . . . . . . . . . . . . . . . . . . Secondary . | . . . . . . . . . . . . . . . . . . . . Self-Inflicted Damage 18 | . . . . . . . . . . . . . . . . . . . 18 Shots 1 | . . . . . . . . . . . . . . . . . . . 1 Rammed 3 | . . . . . . . . . . . . . . . . . . . 3 Targets Rammed 3 | . . . . . . . . . . . . . . . . . . . 3 Kicked . | . . . . . . . . . . . . . . . . . . . . Crushed . | . . . . . . . . . . . . . . . . . . . . Highest Temperature 250 | . 18 . . 5 16 25 78 99 . . . 49 250 . . 211 . . . Average Temperature 28 | . 12 . . 3 10 4 35 28 . . . 26 133 . . 122 . . . Received Heat Transfer 1199 | . 66 . . . 9 51 . 168 9 . 492 179 . . . 9 66 30 120 Siege Activations . | . . . . . . . . . . . . . . . . . . . . Robots Corrupted . | . . . . . . . . . . . . . . . . . . . . Combat Hostiles . | . . . . . . . . . . . . . . . . . . . . Parts Fried . | . . . . . . . . . . . . . . . . . . . . Impact Corruptions . | . . . . . . . . . . . . . . . . . . . . Robots Melted . | . . . . . . . . . . . . . . . . . . . . Combat Hostiles . | . . . . . . . . . . . . . . . . . . . . Parts Melted 1 | . . . . . . . . . . . . 1 . . . . . . . Heat Transferred 335 | 75 75 . . . . . . . . . . 111 . . . . . . 74 Parts Sabotaged . | . . . . . . . . . . . . . . . . . . . . Parts Stolen . | . . . . . . . . . . . . . . . . . . . . Parts Stripped . | . . . . . . . . . . . . . . . . . . . . Power Chain Reactions . | . . . . . . . . . . . . . . . . . . . . Alert | -11 -10 -10 -9 -9 -8 -7 -6 -6 -6 -5 -5 -4 -4 -4 -4 -3 -3 -2 -1 ------- Run | Yrd Mat Min Mat Min Mat Fac Fac Ext Cet Fac DSF Fac Upp Upp Zhi Pro Res Res Acc Peak Influence 337 | 10 120 111 114 176 147 337 101 238 147 76 68 254 . . . . 257 180 264 Initial 132 | . 6 46 42 44 . 62 76 49 132 76 53 . . . . . 50 40 89 Average 85 | 3 70 65 67 40 43 137 88 118 139 76 56 99 . . . . 137 91 111 Maximum Alert Level 1 | . . . . . . 1 . 1 . . . 1 . . . . 1 . 1 Low Security (%) 91 | 100 100 100 100 100 100 78 100 87 100 100 100 77 . . . . 78 100 84 Level 1 8 | . . . . . . 21 . 12 . . . 22 . . . . 21 . 15 Level 2 . | . . . . . . . . . . . . . . . . . . . . Level 3 . | . . . . . . . . . . . . . . . . . . . . Level 4 . | . . . . . . . . . . . . . . . . . . . . Level 5 . | . . . . . . . . . . . . . . . . . . . . High Security . | . . . . . . . . . . . . . . . . . . . . Max Security . | . . . . . . . . . . . . . . . . . . . . Squads Dispatched 11 | . . . 1 . . 2 . . . . 2 2 . . . . 1 1 2 Investigation 2 | . . . . . . . . . . . . 1 . . . . . 1 . Extermination 1 | . . . . . . . . . . . . . . . . . . . 1 Reinforcement 8 | . . . 1 . . 2 . . . . 2 1 . . . . 1 . 1 Assault . | . . . . . . . . . . . . . . . . . . . . Garrison . | . . . . . . . . . . . . . . . . . . . . Intercept . | . . . . . . . . . . . . . . . . . . . . Searches Triggered . | . . . . . . . . . . . . . . . . . . . . Construction Impeded . | . . . . . . . . . . . . . . . . . . . . Haulers Reinforced . | . . . . . . . . . . . . . . . . . . . . Active Scanning Responses . | . . . . . . . . . . . . . . . . . . . . Cargo Convoy Interrupts . | . . . . . . . . . . . . . . . . . . . . Stealth | -11 -10 -10 -9 -9 -8 -7 -6 -6 -6 -5 -5 -4 -4 -4 -4 -3 -3 -2 -1 --------- Run | Yrd Mat Min Mat Min Mat Fac Fac Ext Cet Fac DSF Fac Upp Upp Zhi Pro Res Res Acc Distress Signals 11 | . 1 1 . . 1 1 . . 1 . . 1 . . . . . 2 3 Communications Jammed . | . . . . . . . . . . . . . . . . . . . . Distress Signals . | . . . . . . . . . . . . . . . . . . . . Times Spotted 201 | . 6 27 2 7 9 21 . 13 4 . 9 25 . 1 . 7 17 26 27 Peak Tracking Total 22 | . 3 22 2 4 6 9 . 13 5 . 6 14 . 2 . 4 9 15 11 Tactical Retreats 36 | . . 4 . . 1 5 . 4 . . 2 5 . . . 3 3 3 6 Traps | -11 -10 -10 -9 -9 -8 -7 -6 -6 -6 -5 -5 -4 -4 -4 -4 -3 -3 -2 -1 ------- Run | Yrd Mat Min Mat Min Mat Fac Fac Ext Cet Fac DSF Fac Upp Upp Zhi Pro Res Res Acc Traps Triggered 9 | . . . . . . . . 2 . . 2 4 . . . . . 1 . Indirectly . | . . . . . . . . . . . . . . . . . . . . Trap Hack Attempts . | . . . . . . . . . . . . . . . . . . . . Triggered . | . . . . . . . . . . . . . . . . . . . . Disarmed . | . . . . . . . . . . . . . . . . . . . . Reprogrammed . | . . . . . . . . . . . . . . . . . . . . Reused . | . . . . . . . . . . . . . . . . . . . . Traps Extracted . | . . . . . . . . . . . . . . . . . . . . Installed . | . . . . . . . . . . . . . . . . . . . . Triggered . | . . . . . . . . . . . . . . . . . . . . Machines | -11 -10 -10 -9 -9 -8 -7 -6 -6 -6 -5 -5 -4 -4 -4 -4 -3 -3 -2 -1 ---------- Run | Yrd Mat Min Mat Min Mat Fac Fac Ext Cet Fac DSF Fac Upp Upp Zhi Pro Res Res Acc Machines Disabled 3 | . . . . 1 1 . . . . . . . . . . . . . 1 Max in Single Turn 1 | . . . . 1 1 . . . . . . . . . . . . . 1 Garrison Access 1 | . . . . . 1 . . . . . . . . . . . . . . Energy Cycler 1 | . . . . . . . . . . . . . . . . . . . 1 Machines Repaired . | . . . . . . . . . . . . . . . . . . . . Machines Dismantled . | . . . . . . . . . . . . . . . . . . . . Machines Sabotaged . | . . . . . . . . . . . . . . . . . . . . Overloaded Fab Kills . | . . . . . . . . . . . . . . . . . . . . Hacking | -11 -10 -10 -9 -9 -8 -7 -6 -6 -6 -5 -5 -4 -4 -4 -4 -3 -3 -2 -1 --------- Run | Yrd Mat Min Mat Min Mat Fac Fac Ext Cet Fac DSF Fac Upp Upp Zhi Pro Res Res Acc Machines Accessed 35 | . 3 . 3 1 2 6 2 . . 1 . 2 . . 8 . 3 1 3 Terminals 23 | . 3 . 3 1 1 5 1 . . 1 . 2 . . . . 3 1 2 Fabricators . | . . . . . . . . . . . . . . . . . . . . Repair Stations . | . . . . . . . . . . . . . . . . . . . . Recycling Units 1 | . . . . . . . 1 . . . . . . . . . . . . Scanalyzers . | . . . . . . . . . . . . . . . . . . . . Garrison Access 3 | . . . . . 1 1 . . . . . . . . . . . . 1 Total Hacks 84 | . 8 . 7 5 4 12 4 . . 2 . 7 . . 24 . 4 3 4 Successful 47 | . 5 . 4 2 3 3 . . . 1 . 1 . . 24 . 1 1 2 Failed 37 | . 3 . 3 3 1 9 4 . . 1 . 6 . . . . 3 2 2 Catastrophic 8 | . 1 . 1 1 . 3 1 . . . . . . . . . 1 . . Database Lockouts . | . . . . . . . . . . . . . . . . . . . . Manual 45 | . 7 . 6 4 3 9 1 . . . . 7 . . . . 3 3 2 Terminals 54 | . 8 . 7 5 3 11 1 . . 2 . 7 . . . . 4 3 3 Fabricators . | . . . . . . . . . . . . . . . . . . . . Repair Stations . | . . . . . . . . . . . . . . . . . . . . Recycling Units 3 | . . . . . . . 3 . . . . . . . . . . . . Scanalyzers . | . . . . . . . . . . . . . . . . . . . . Garrison Access 3 | . . . . . 1 1 . . . . . . . . . . . . 1 Terminal Hacks 34 | . 3 . 2 2 1 . . . . 1 . . . . 24 . . 1 . Record 12 | . . . . . . . . . . . . . . . 12 . . . . Part Schematic 4 | . . . . . . . . . . . . . . . 4 . . . . Robot Analysis 4 | . . . . . . . . . . . . . . . 4 . . . . Prototype ID Bank 4 | . . . . . . . . . . . . . . . 4 . . . . Open DSF 1 | . . . . . . . . . . 1 . . . . . . . . . Branch Access Points 1 | . 1 . . . . . . . . . . . . . . . . . . Terminal Index 3 | . 1 . 1 . 1 . . . . . . . . . . . . . . Unreport Threat 2 | . . . . 1 . . . . . . . . . . . . . 1 . Investigation Status 1 | . . . . 1 . . . . . . . . . . . . . . . Recall Investigation 1 | . . . 1 . . . . . . . . . . . . . . . . Hauler Manifests 1 | . 1 . . . . . . . . . . . . . . . . . . Fabricator Hacks . | . . . . . . . . . . . . . . . . . . . . Repair Station Hacks . | . . . . . . . . . . . . . . . . . . . . Recycling Unit Hacks . | . . . . . . . . . . . . . . . . . . . . Scanalyzer . | . . . . . . . . . . . . . . . . . . . . Garrison Access Hacks 1 | . . . . . 1 . . . . . . . . . . . . . . Seal Access 1 | . . . . . 1 . . . . . . . . . . . . . . Unauthorized Hacks 12 | . 2 . 2 . 1 3 . . . . . 1 . . . . 1 . 2 Terminals 12 | . 2 . 2 . 1 3 . . . . . 1 . . . . 1 . 2 Botnet 12 | . 2 . 2 . 1 3 . . . . . 1 . . . . 1 . 2 Fabricators . | . . . . . . . . . . . . . . . . . . . . Repair Stations . | . . . . . . . . . . . . . . . . . . . . Recycling Units . | . . . . . . . . . . . . . . . . . . . . Scanalyzers . | . . . . . . . . . . . . . . . . . . . . Garrison Access . | . . . . . . . . . . . . . . . . . . . . Data Cores Recovered 2 | . . . . . . 2 . . . . . . . . . . . . . Used 1 | . . . . . . 1 . . . . . . . . . . . . . Hacking Detections 25 | . 2 . 3 1 1 6 2 . . 1 . 2 . . . . 3 1 3 Full Trace Events 1 | . . . . . . . . . . . . 1 . . . . . . . Feedback Events . | . . . . . . . . . . . . . . . . . . . . Feedback Blocked . | . . . . . . . . . . . . . . . . . . . . Robot Schematics Acquired . | . . . . . . . . . . . . . . . . . . . . Robots Built . | . . . . . . . . . . . . . . . . . . . . Authchips . | . . . . . . . . . . . . . . . . . . . . Time . | . . . . . . . . . . . . . . . . . . . . Total Robot Build Rating . | . . . . . . . . . . . . . . . . . . . . Part Schematics Acquired 4 | . . . . . . . . . . . . . . . 4 . . . . Parts Built . | . . . . . . . . . . . . . . . . . . . . Authchips . | . . . . . . . . . . . . . . . . . . . . Time . | . . . . . . . . . . . . . . . . . . . . Total Part Build Rating . | . . . . . . . . . . . . . . . . . . . . Parts Repaired . | . . . . . . . . . . . . . . . . . . . . Time . | . . . . . . . . . . . . . . . . . . . . Parts Recycled . | . . . . . . . . . . . . . . . . . . . . Recycled Matter . | . . . . . . . . . . . . . . . . . . . . Retrieved Matter . | . . . . . . . . . . . . . . . . . . . . Retrieved Components . | . . . . . . . . . . . . . . . . . . . . Parts Scanalyzed . | . . . . . . . . . . . . . . . . . . . . Part Schematics Acquired . | . . . . . . . . . . . . . . . . . . . . Parts Damaged . | . . . . . . . . . . . . . . . . . . . . Bothacking | -11 -10 -10 -9 -9 -8 -7 -6 -6 -6 -5 -5 -4 -4 -4 -4 -3 -3 -2 -1 ------------ Run | Yrd Mat Min Mat Min Mat Fac Fac Ext Cet Fac DSF Fac Upp Upp Zhi Pro Res Res Acc Used RIF Installer . | . . . . . . . . . . . . . . . . . . . . Robots Hacked . | . . . . . . . . . . . . . . . . . . . . Non-combat . | . . . . . . . . . . . . . . . . . . . . Combat . | . . . . . . . . . . . . . . . . . . . . Robot Hacks Applied . | . . . . . . . . . . . . . . . . . . . . Relay Couplers Released . | . . . . . . . . . . . . . . . . . . . . Fabnet Peak Effective % . | . . . . . . . . . . . . . . . . . . . . Robots Rewired . | . . . . . . . . . . . . . . . . . . . . Allies Hacked . | . . . . . . . . . . . . . . . . . . . . Hacks Repelled . | . . . . . . . . . . . . . . . . . . . . Allies | -11 -10 -10 -9 -9 -8 -7 -6 -6 -6 -5 -5 -4 -4 -4 -4 -3 -3 -2 -1 -------- Run | Yrd Mat Min Mat Min Mat Fac Fac Ext Cet Fac DSF Fac Upp Upp Zhi Pro Res Res Acc Total Allies 3 | . . . . 3 . . . . . . . . . . . . . . . Largest Group 3 | . . . . 3 . . . . . . . . . . . . . . . Highest-Rated Group 40 | . . . . 40 . . . . . . . . . . . . . . . Highest-Rated Ally 16 | . . . . 16 . . . . . . . . . . . . . . . Total Orders . | . . . . . . . . . . . . . . . . . . . . Ally Attacks . | . . . . . . . . . . . . . . . . . . . . Total Damage . | . . . . . . . . . . . . . . . . . . . . Kills . | . . . . . . . . . . . . . . . . . . . . Allies Corrupted . | . . . . . . . . . . . . . . . . . . . . Allies Melted . | . . . . . . . . . . . . . . . . . . . . Intel | -11 -10 -10 -9 -9 -8 -7 -6 -6 -6 -5 -5 -4 -4 -4 -4 -3 -3 -2 -1 ------- Run | Yrd Mat Min Mat Min Mat Fac Fac Ext Cet Fac DSF Fac Upp Upp Zhi Pro Res Res Acc Robot Analysis Total 4 | . . . . . . . . . . . . . . . 4 . . . . Derelict Logs Recovered 2 | . . 1 . 1 . . . . . . . . . . . . . . . Drone Launches . | . . . . . . . . . . . . . . . . . . . . Drone Recoveries . | . . . . . . . . . . . . . . . . . . . . Exploration | -11 -10 -10 -9 -9 -8 -7 -6 -6 -6 -5 -5 -4 -4 -4 -4 -3 -3 -2 -1 ------------- Run | Yrd Mat Min Mat Min Mat Fac Fac Ext Cet Fac DSF Fac Upp Upp Zhi Pro Res Res Acc Turns Passed 4298 | 77 194 215 110 915 122 412 98 288 39 23 185 183 131 81 107 161 412 176 369 Spaces Moved 7711 | 56 153 464 245 978 221 1123 261 720 72 24 117 268 369 203 242 454 636 392 713 Core 517 | 3 . 82 . . . . . . 21 24 94 205 . . . . . . 88 Treads . | . . . . . . . . . . . . . . . . . . . . Legs . | . . . . . . . . . . . . . . . . . . . . Wheels 231 | 53 153 25 . . . . . . . . . . . . . . . . . Hover 71 | . . . . . . . . . . . . . . . . . . . 71 Flight 6892 | . . 357 245 978 221 1123 261 720 51 . 23 63 369 203 242 454 636 392 554 Fastest Speed 23 | 50 90 37 34 31 31 26 23 23 35 100 31 35 35 35 35 35 31 31 30 Average Speed 37 | 84 90 42 34 31 31 27 25 28 53 100 137 47 35 35 36 35 35 35 42 Slowest Speed 350 | 90 90 100 34 120 34 28 26 115 100 100 350 100 35 35 115 35 40 50 160 Overloaded Moves . | . . . . . . . . . . . . . . . . . . . . Propulsion Burnouts . | . . . . . . . . . . . . . . . . . . . . Robots Hopped 53 | . . . 2 14 2 6 . 3 . . 1 2 4 . . . 3 8 8 Cave-ins Triggered . | . . . . . . . . . . . . . . . . . . . . Teleports 1 | . . . . . . . . . . . . . . . 1 . . . . Exploration Rate (%) 39 | 5 39 79 25 103 22 29 10 65 23 1 93 12 56 38 62 68 15 18 26 Regions Visited 19 Branch Regions 8 Pre-discovered Areas 5 | . . 1 . 1 . . . . . . . . . . 3 . . . . Known Exits Taken 13 | . 1 . . . . 1 1 1 1 1 . 1 1 1 1 1 1 1 . Unknown Exits Taken 5 | 1 . 1 1 1 1 . . . . . . . . . . . . . . Scrap Searched 7 | . . 1 . 1 . . . . . . . . 1 2 . 2 . . . Spaces Dug 29 | . . . . . . 9 10 2 . . . . . . . . 8 . . Terrain Destroyed 63 | . . . . 2 2 9 10 2 . . . . . . . . 8 . 30 Melee 29 | . . . . . . 9 10 2 . . . . . . . . 8 . . Projectile 4 | . . . . 2 2 . . . . . . . . . . . . . . AOE 30 | . . . . . . . . . . . . . . . . . . . 30 Terrain Rammed . | . . . . . . . . . . . . . . . . . . . . Walls Destroyed . | . . . . . . . . . . . . . . . . . . . . Machines Disabled . | . . . . . . . . . . . . . . . . . . . . Actions | -11 -10 -10 -9 -9 -8 -7 -6 -6 -6 -5 -5 -4 -4 -4 -4 -3 -3 -2 -1 --------- Run | Yrd Mat Min Mat Min Mat Fac Fac Ext Cet Fac DSF Fac Upp Upp Zhi Pro Res Res Acc Total 8796 | 69 176 474 269 1547 247 1193 276 787 72 23 136 303 365 212 258 454 783 404 748 Wait 799 | . 2 1 26 545 9 28 1 45 . . 6 3 . 3 11 . 116 . 3 Move 7587 | 55 152 463 240 950 216 1110 260 714 71 23 114 263 360 202 241 453 628 374 698 Hop 50 | . . . 2 13 2 6 . 2 . . 1 2 4 . . . 3 8 7 Pick Up 22 | 1 1 1 . 4 1 6 . 1 . . . 2 . 3 . . . 2 . Fast Attach 84 | 6 1 7 . 7 1 8 3 1 . . 6 5 1 1 5 1 8 6 17 Attach 20 | . 1 . 1 . 2 1 1 . 1 . 1 3 . 1 . . 2 5 1 Detach 13 | . 1 . . . . 2 1 . . . . 2 . . . . 2 . 5 Swap 6 | 1 . . . 1 . 4 . . . . . . . . . . . . . Drop 20 | . . . . 3 . 11 . 2 . . . . . 2 1 . . . 1 Fire 98 | 6 18 2 . 24 16 . . . . . . 19 . . . . . . 13 Melee 68 | . . . . . . 17 10 10 . . . . . . . . 23 8 . Ram 3 | . . . . . . . . . . . . . . . . . . . 3 Kick . | . . . . . . . . . . . . . . . . . . . . Crush . | . . . . . . . . . . . . . . . . . . . . Escape Stasis 26 | . . . . . . . . 12 . . 8 4 . . . . 1 1 . Rewire . | . . . . . . . . . . . . . . . . . . . . Trap . | . . . . . . . . . . . . . . . . . . . . Miscellaneous . | . . . . . . . . . . . . . . . . . . . . Route ------- -11/Scrapyard -10/Materials -10/Mines -9/Materials -9/Mines (discovered 2 exits: *Mat x2) -8/Materials -7/Factory -6/Factory -6/Extension (discovered 2 exits: *Fac / *Cet) -6/Cetus -5/Factory -5/DSF -4/Factory -4/Upper Caves -4/Upper Caves -4/Zhirov -3/Proximity Caves -3/Research -2/Research -1/Access History --------- Turn | Location | Event 34 | -11/Scrapyard | Discovered new exit (range 16) 78 | -11/Scrapyard | Entered Materials 118 | -10/Materials | Identified exit to Mines 272 | -10/Materials | Entered Mines 273 | -10/Mines | Assembled infested the area 301 | -10/Mines | Released all parts (5) 306 | -10/Mines | Core integrity fell below 50% 312 | -10/Mines | Build established: Mutant 366 | -10/Mines | Core integrity fell below 20% 380 | -10/Mines | A weapon hastily lodged in a ceiling crevice suddenly fell to the ground 473 | -10/Mines | Learned location of Mines (-9) 482 | -10/Mines | Discovered new exit (range 3) 487 | -10/Mines | Entered Materials 487 | -9/Materials | Evolved 2 slots: Propulsion x2 577 | -9/Materials | Discovered new exit (range 15) 597 | -9/Materials | Entered Mines 615 | -9/Mines | Met a Derelict bent on vengeance 702 | -9/Mines | Lost 3 parts (3n) 743 | -9/Mines | Discovered new exit (range 9) 755 | -9/Mines | Assisted by bots powering up and referring to "LRC-V3" 796 | -9/Mines | Received a Rocket Launcher from a helpful Derelict 814 | -9/Mines | Discovered new exit (range 5) 972 | -9/Mines | Build established: Scavenger-Sprinter 1512 | -9/Mines | Entered Materials 1512 | -8/Materials | Evolved 2 slots: Utility x2 1632 | -8/Materials | Discovered new exit (range 4) 1634 | -8/Materials | Entered Factory 1634 | -7/Factory | Evolved 2 slots: Propulsion x1, Utility x1 1663 | -7/Factory | Lost 3 parts (2n1w) 2043 | -7/Factory | Discovered new exit (range 10) 2045 | -7/Factory | Identified exit to Factory 2046 | -7/Factory | Entered another Factory area 2046 | -6/Factory | Evolved 2 slots: Propulsion x1, Utility x1 2139 | -6/Factory | Discovered new exit (range 16) 2142 | -6/Factory | Identified exit to Extension 2144 | -6/Factory | Entered Extension 2227 | -6/Extension | Spotted B-75 Beast 2229 | -6/Extension | Spotted B-75 Beast 2400 | -6/Extension | Lost 6 parts (3n2u1w) 2425 | -6/Extension | Discovered new exit (range 15) 2425 | -6/Extension | Discovered new exit (range 15) 2430 | -6/Extension | Identified exit to Factory 2431 | -6/Extension | Identified exit to Cetus 2432 | -6/Extension | Entered Cetus 2437 | -6/Cetus | Spotted Cetus Guard 2438 | -6/Cetus | Spotted Cetus Guard 2438 | -6/Cetus | Spotted Cetus Guard 2446 | -6/Cetus | Discovered exit to Factory (range 16) 2471 | -6/Cetus | Entered Factory 2471 | -5/Factory | Evolved 2 slots: Utility x2 2475 | -5/Factory | Identified exit to DSF 2494 | -5/Factory | Entered DSF 2520 | -5/DSF | Additional patrols routed to DSF 2671 | -5/DSF | Discovered new exit (range 16) 2673 | -5/DSF | Core integrity fell below 50% 2678 | -5/DSF | Identified exit to Factory 2679 | -5/DSF | Entered Factory 2679 | -4/Factory | Evolved 2 slots: Utility x2 2685 | -4/Factory | Build established: Mutant 2695 | -4/Factory | System corruption reached 10% 2708 | -4/Factory | Lost 7 parts (1p4n2u) 2810 | -4/Factory | Core integrity fell below 50% 2856 | -4/Factory | Discovered new exit (range 9) 2860 | -4/Factory | Identified exit to Upper Caves 2862 | -4/Factory | Entered Upper Caves 2956 | -4/Upper Caves | Discovered new exit (range 5) 2957 | -4/Upper Caves | Identified exit to Upper Caves 2993 | -4/Upper Caves | Entered another Upper Caves area 3071 | -4/Upper Caves | Discovered new exit (range 7) 3073 | -4/Upper Caves | Identified exit to Zhirov 3074 | -4/Upper Caves | Entered Zhirov 3074 | -4/Zhirov | Discovered new exit (range 3) 3082 | -4/Zhirov | Met Zhirov 3095 | -4/Zhirov | Learned location of Quarantine (-2) 3095 | -4/Zhirov | Learned location of Testing (-3) 3095 | -4/Zhirov | Learned location of Command (-1) 3097 | -4/Zhirov | Zhirov requested help retrieving the SGEMP Prototype 3103 | -4/Zhirov | Found Alien Artifact 3103 | -4/Zhirov | Identified Transdimensional Reconstructor 3103 | -4/Zhirov | Warped through subspace 3104 | -4/Zhirov | Core integrity fell below 20% 3126 | -4/Zhirov | Found Alien Artifact 3126 | -4/Zhirov | Identified Integrated Dissipator 3126 | -4/Zhirov | Installed Integrated Dissipator, increased core heat dissipation (+20) 3181 | -4/Zhirov | Identified exit to Proximity Caves 3181 | -4/Zhirov | Entered Proximity Caves 3237 | -3/Proximity Caves | Attracted the attention of an 0b10 base 3335 | -3/Proximity Caves | Discovered new exit (range 14) 3339 | -3/Proximity Caves | Identified exit to Research 3342 | -3/Proximity Caves | Entered Research 3342 | -3/Research | Evolved 2 slots: Propulsion x1, Utility x1 3539 | -3/Research | Spotted B-86 Titan 3558 | -3/Research | Build established: Hacker-Mutant 3689 | -3/Research | Discovered new exit (range 15) 3693 | -3/Research | Identified exit to Research 3754 | -3/Research | Entered another Research area 3754 | -2/Research | Evolved 2 slots: Utility x2 3854 | -2/Research | Lost 7 parts (2n4u1w) 3921 | -2/Research | Discovered new exit (range 5) 3922 | -2/Research | Identified exit to Access 3930 | -2/Research | Entered Access 3930 | -1/Access | Evolved 2 slots: Utility x2 3939 | -1/Access | Lost 3 parts (1n2u) 4084 | -1/Access | Lost 6 parts (1p4n1u) 4117 | -1/Access | Core integrity fell below 50% 4165 | -1/Access | Lost 6 parts (5u1w) 4217 | -1/Access | Spotted B-99 Colossus 4218 | -1/Access | Core integrity fell below 20% 4225 | -1/Access | Lost 3 parts (3n) 4273 | -1/Access | Energy Cycler disabled 4283 | -1/Access | Spotted B-99 Colossus 4299 | -1/Access | Destroyed by B-99 Colossus with Multirail Last Messages --------------- Wave Collapse Detector explodes. Slug penetrates Wall. Penetrated by Slug. Adv. Signal Interpreter destroyed. Slug penetrates Wall. Penetrated by Slug. ALERT: Hostiles spotted, dispatching reinforcements to Terminal A011. Penetrated by Slug. Slug penetrates Wall. Penetrated by Slug. Recycling Unit disabled. Penetrated by Slug. Micro-nuke Launcher destroyed. Penetrated by Slug. Cmb. Linear Gravjet destroyed. Slug penetrates Wall. Acquired 6 matter. Penetrated by Slug. [Achievement: 10k Club] Map ----- +----------------------------------------------------+ | ????????????????????????????????# | | ????????????????????????????????# | | ????????????????????????????????# "" | | ????????????????????????????????# "" | | ????????????????????????????????# """""" | | ????????????????????????????????# """""" | | ????????????????????????????????######## "" | | ???????????????????????? ?????????????# "" | | ????????????????????????? ????????????# | | ???????????????????????###/#######?????# | | ??????????????????+???? #####?# | | ??????????????????# ##""#?# | | ?????????????????## ##T"### | | ???????????????? | | ?????????????? !! = | | ?????????????? ""Y"" !! = | | ????????????? """" != = | | ????????????? | | ??????????????? | | ??????????????? BB | | ????????????????## BB #p#################""" | | ????????????????# pp #???????# | | ????????????????# ##??????# | | ?????????????????# #??????# | | ????????????????????# ##?????# | | ?????????????????????# @ #?????# | | ?????????????????????### #?????# | | ???????????????????????# #?????# | | ???????????????????????# #?????# | | ???????????????????????# #?????# | | ???????????????????????# #?????# | | ???????????????????????# #?????# | | ???????????????????????# ###?????# | | ???????????????????????####;#######;#???????###### | | ??????????????????????????# #???????#????????????? | | ???????????????????????????##????????????????????? | | ?????????????????????????????????????????????????? | | ?????????????????????????????????????????????????? | | ?????????????????????????????????????????????????? | | | | | | | | | | | | | | | | | | | | | | | +----------------------------------------------------+ Best States ------------- Heat Dissipation 72 Energy Generation 23 Energy Capacity 340 Matter Stores 300 Matter Capacity 300 Sight Range 16 Robot Scan Range 18 Terrain Scan Density 10 Additional Mass Support 9 Armor Coverage 600 Resistance: EM 25 Power Shielding 90 Point Defense Rating 240 Evasion (%) 75 Melee Accuracy 26 Armor Integrity Analysis 40 Recoil Reduction 1 Offensive Hacking 24 Defensive Hacking 20 Item Schematics ----------------- Assault Drone Bay | -4/Zhirov | Free Exp. Heat Sink | -4/Zhirov | Free Exp. Optical Array | -4/Zhirov | Free Imp. Arc Thrower | -4/Zhirov | Free Robot Schematics ------------------ None Fabricated ------------ Nothing Alien Tech Used ----------------- Transdimensional Reconstructor Integrated Dissipator Achievements -------------- 10k Club Alien Tech Armchair Analyst Deadly Force Denied? Dodgeball, But With Guns Knowing Is Half The Battle Shopping List Slippery One Subspace Traveler The Science Guy Challenges ------------ None Game ------ Seed ArmageddonSensorRipper Manual? 0 Play Time 01:15:10 Cumulative 9.2 hours Start 2024.04.03 @ 22:28:58 End 2024.04.03 @ 23:51:05 Sessions 1 Manual Loads 0 Difficulty Rogue Special Mode None Game No. 17 Rogue 17 Adventurer 0 Explorer 0 Win Type - Total 0 Types 0/0/0/0/0/0/0/0/0 Lore% 9 Gallery% 21 Achievement% 21 Wizard Run 0 Options --------- Layout 1 ASCII 0 Keyboard 1 Movement Numpad Keybinds 0 Fullscreen 1 Font 32/SmallcapsGlow Map View 50x35 Zoom Use 0% Tactical HUD 0 Map Filters NONE Filters NONE Steam 1 RUN: 6287da80-4575-4280-93bc-70fa0f884bfd